[Event "*** Titled Tuesday 3|2 Blitz"]
[Site "Chess.com"]
[Date "2015.02.24"]
[Round "3"]
[White "Carolina-moon"]
[Black "ilmago"]
[Result "0-1"]
[WhiteElo "1926"]
[BlackElo "1884"]
[TimeControl "180+2"]
[EndTime "11:33:43 PST"]
[Termination "ilmago won on time"]

1. e4 {[%clk 0:03:00]} 1... c5 {[%clk 0:02:56.9]} 2. Nf3 {[%clk 0:03:00.6]} 2...
d6 {[%clk 0:02:58.1]} 3. d4 {[%clk 0:02:59.6]} 3... cxd4 {[%clk 0:03:00]} 4.
Qxd4 {[%clk 0:03:01.1]} 4... Nc6 {[%clk 0:02:59.2]} 5. Bb5 {[%clk 0:03:02.1]}
5... Bd7 {[%clk 0:02:57.9]} 6. Bxc6 {[%clk 0:03:03.4]} 6... Bxc6 {[%clk
0:02:59.1]} 7. Nc3 {[%clk 0:03:02.4]} 7... Nf6 {[%clk 0:02:59.2]} 8. Bg5 {[%clk
0:03:02.9]} 8... e6 {[%clk 0:02:59.4]} 9. O-O-O {[%clk 0:03:04.2]} 9... Be7
{[%clk 0:02:58.7]} 10. Rhe1 {[%clk 0:03:03.9]} 10... Qa5 {[%clk 0:02:51.4]} 11.
Kb1 {[%clk 0:02:58.2]} 11... O-O {[%clk 0:02:48.8]} 12. Qd2 {[%clk 0:02:59.1]}
12... Qb6 {[%clk 0:02:22.5]} 13. Nd4 {[%clk 0:02:48.3]} 13... Rac8 {[%clk
0:02:20.2]} 14. g4 {[%clk 0:02:23.6]} 14... Rfe8 {[%clk 0:02:18.5]} 15. f4
{[%clk 0:02:01]} 15... Nxg4 {[%clk 0:02:14.7]} 16. Bxe7 {[%clk 0:02:01.3]} 16...
Rxe7 {[%clk 0:02:14.7]} 17. Rg1 {[%clk 0:01:54.7]} 17... Nf6 {[%clk 0:02:09.9]}
18. Qg2 {[%clk 0:01:33.5]} 18... g6 {[%clk 0:02:08]} 19. Nb3 {[%clk 0:01:34]}
19... d5 {[%clk 0:01:57.3]} 20. e5 {[%clk 0:01:23.4]} 20... Ne8 {[%clk 0:01:53]}
21. Ne2 {[%clk 0:01:08]} 21... Ng7 {[%clk 0:01:50.7]} 22. Ned4 {[%clk
0:01:07.4]} 22... Ba4 {[%clk 0:01:50.6]} 23. Qg5 {[%clk 0:01:04.5]} 23... Rec7
{[%clk 0:01:43.3]} 24. Rg3 {[%clk 0:00:40.1]} 24... Rc4 {[%clk 0:01:43.1]} 25.
Rgd3 {[%clk 0:00:25.4]} 25... Bxb3 {[%clk 0:01:40]} 26. axb3 {[%clk 0:00:24.5]}
26... R4c5 {[%clk 0:01:38.8]} 27. f5 {[%clk 0:00:24]} 27... Ra5 {[%clk
0:01:24.9]} 28. fxe6 {[%clk 0:00:18.5]} 28... fxe6 {[%clk 0:01:21.8]} 29. Qe7
{[%clk 0:00:11.7]} 29... Rac5 {[%clk 0:01:05]} 30. Rf1 {[%clk 0:00:03.2]} 30...
R5c7 {[%clk 0:01:05.7]} 0-1

[Event "*** Titled Tuesday 3|2 Blitz"]
[Site "Chess.com"]
[Date "2015.02.24"]
[Round "3"]
[White "Ar4uha"]
[Black "FrankieJay"]
[Result "1-0"]
[WhiteElo "2448"]
[BlackElo "2213"]
[TimeControl "180+2"]
[EndTime "11:34:00 PST"]
[Termination "Ar4uha won by resignation"]

1. e4 {[%clk 0:03:00]} 1... c6 {[%clk 0:01:42.3]} 2. Nc3 {[%clk 0:02:59.9]} 2...
d5 {[%clk 0:01:43.2]} 3. Qe2 {[%clk 0:03:00.5]} 3... d4 {[%clk 0:01:41.9]} 4.
Nd1 {[%clk 0:03:01.5]} 4... e5 {[%clk 0:01:43.4]} 5. g3 {[%clk 0:03:02.7]} 5...
g6 {[%clk 0:01:42.1]} 6. f4 {[%clk 0:03:01.5]} 6... Bg7 {[%clk 0:01:42.7]} 7. d3
{[%clk 0:03:03]} 7... Nh6 {[%clk 0:01:43.1]} 8. Bh3 {[%clk 0:03:01.1]} 8... O-O
{[%clk 0:01:38.9]} 9. Nf2 {[%clk 0:03:01.7]} 9... f6 {[%clk 0:01:36.4]} 10. Nf3
{[%clk 0:03:00.1]} 10... Nf7 {[%clk 0:01:37.1]} 11. Bxc8 {[%clk 0:02:59.2]}
11... Qxc8 {[%clk 0:01:38.2]} 12. O-O {[%clk 0:03:00.8]} 12... Na6 {[%clk
0:01:39.5]} 13. Bd2 {[%clk 0:02:59]} 13... c5 {[%clk 0:01:40.4]} 14. h4 {[%clk
0:02:53.1]} 14... Nc7 {[%clk 0:01:18.5]} 15. fxe5 {[%clk 0:02:52.1]} 15... Nxe5
{[%clk 0:01:16.4]} 16. Nxe5 {[%clk 0:02:48.6]} 16... fxe5 {[%clk 0:01:17.7]} 17.
h5 {[%clk 0:02:47.9]} 17... Qe6 {[%clk 0:01:12.3]} 18. h6 {[%clk 0:02:43.4]}
18... Bf6 {[%clk 0:01:12.4]} 19. Ng4 {[%clk 0:02:44.3]} 19... Be7 {[%clk
0:01:12.1]} 20. Kg2 {[%clk 0:02:44]} 20... Rxf1 {[%clk 0:01:04.8]} 21. Rxf1
{[%clk 0:02:43.9]} 21... Rf8 {[%clk 0:01:06.3]} 22. Rxf8+ {[%clk 0:02:44.3]}
22... Bxf8 {[%clk 0:01:08.2]} 23. b3 {[%clk 0:02:45.3]} 23... Be7 {[%clk
0:01:07.2]} 24. Qf3 {[%clk 0:02:36.6]} 24... Ne8 {[%clk 0:01:07.1]} 25. Nf2
{[%clk 0:02:22]} 25... Qf6 {[%clk 0:01:02.5]} 26. Qg4 {[%clk 0:02:11.3]} 26...
Qc6 {[%clk 0:00:52.6]} 27. Bg5 {[%clk 0:02:05.2]} 27... Bxg5 {[%clk 0:00:52.8]}
28. Qxg5 {[%clk 0:02:06.7]} 28... Qd6 {[%clk 0:00:48.4]} 29. Ng4 {[%clk
0:02:05.4]} 29... b6 {[%clk 0:00:41.6]} 30. a3 {[%clk 0:02:04.6]} 30... Qe6
{[%clk 0:00:39.3]} 31. a4 {[%clk 0:02:01.2]} 31... Nd6 {[%clk 0:00:37.4]} 32.
Nxe5 {[%clk 0:02:01.2]} 32... Nf7 {[%clk 0:00:26.9]} 33. Nxf7 {[%clk 0:01:59.1]}
33... Kxf7 {[%clk 0:00:28.8]} 34. Qf4+ {[%clk 0:01:41.1]} 34... Ke7 {[%clk
0:00:20.1]} 35. Qc7+ {[%clk 0:01:39.9]} 35... Kf6 {[%clk 0:00:21.4]} 36. Qxh7
{[%clk 0:01:27.2]} 36... Qg4 {[%clk 0:00:22.3]} 37. Qh8+ {[%clk 0:01:17.9]}
37... Kg5 {[%clk 0:00:23.7]} 38. Qe5+ {[%clk 0:01:19]} 38... Kxh6 {[%clk
0:00:25]} 39. Qf4+ {[%clk 0:01:20.4]} 39... Kh5 {[%clk 0:00:26.1]} 40. Qxg4+
{[%clk 0:01:20.3]} 40... Kxg4 {[%clk 0:00:28]} 41. Kf2 {[%clk 0:01:21]} 41... a6
{[%clk 0:00:29]} 42. Kg2 {[%clk 0:01:21.9]} 42... b5 {[%clk 0:00:30.4]} 43. axb5
{[%clk 0:01:20.9]} 43... axb5 {[%clk 0:00:32.3]} 44. Kf2 {[%clk 0:01:22.4]}
44... c4 {[%clk 0:00:32.9]} 45. bxc4 {[%clk 0:01:22.3]} 45... bxc4 {[%clk
0:00:34.5]} 46. dxc4 {[%clk 0:01:23.4]} 1-0

[Event "*** Titled Tuesday 3|2 Blitz"]
[Site "Chess.com"]
[Date "2015.02.24"]
[Round "3"]
[White "Rijeka1999"]
[Black "oggy1984"]
[Result "0-1"]
[WhiteElo "2252"]
[BlackElo "2205"]
[TimeControl "180+2"]
[EndTime "11:34:00 PST"]
[Termination "oggy1984 won by resignation"]

1. e4 {[%clk 0:03:00]} 1... e5 {[%clk 0:02:58.3]} 2. Nf3 {[%clk 0:02:56.5]} 2...
Nc6 {[%clk 0:02:59.3]} 3. Bc4 {[%clk 0:02:57.1]} 3... Nf6 {[%clk 0:02:57.7]} 4.
d3 {[%clk 0:02:58.1]} 4... Be7 {[%clk 0:02:58]} 5. O-O {[%clk 0:02:58.6]} 5...
O-O {[%clk 0:02:58.8]} 6. Re1 {[%clk 0:03:00.2]} 6... d6 {[%clk 0:02:58.4]} 7.
c3 {[%clk 0:02:59.8]} 7... a6 {[%clk 0:02:56.6]} 8. Bb3 {[%clk 0:03:00.2]} 8...
Bg4 {[%clk 0:02:56.9]} 9. h3 {[%clk 0:03:00.7]} 9... Be6 {[%clk 0:02:56.2]} 10.
Nbd2 {[%clk 0:02:55.9]} 10... Qd7 {[%clk 0:02:37.7]} 11. Nf1 {[%clk 0:02:50.3]}
11... Rad8 {[%clk 0:02:34]} 12. d4 {[%clk 0:02:49.5]} 12... Bxb3 {[%clk
0:02:31.6]} 13. Qxb3 {[%clk 0:02:48.5]} 13... b5 {[%clk 0:02:21.7]} 14. Ng3
{[%clk 0:02:40.9]} 14... g6 {[%clk 0:02:18.4]} 15. Bh6 {[%clk 0:02:36.4]} 15...
Rfe8 {[%clk 0:02:18.9]} 16. dxe5 {[%clk 0:02:33.3]} 16... Nxe5 {[%clk
0:02:15.1]} 17. Nxe5 {[%clk 0:02:30.8]} 17... dxe5 {[%clk 0:02:15.7]} 18. a4
{[%clk 0:02:28.3]} 18... Qc6 {[%clk 0:02:01.5]} 19. axb5 {[%clk 0:02:19.4]}
19... axb5 {[%clk 0:02:02]} 20. Ra5 {[%clk 0:02:18]} 20... Rb8 {[%clk
0:02:01.5]} 21. Qa2 {[%clk 0:02:12.4]} 21... Bc5 {[%clk 0:01:56.8]} 22. Ra6
{[%clk 0:02:10.7]} 22... Bb6 {[%clk 0:01:54.6]} 23. Be3 {[%clk 0:01:50.4]} 23...
Ra8 {[%clk 0:01:46.2]} 24. Bxb6 {[%clk 0:01:43.2]} 24... Rxa6 {[%clk 0:01:42.3]}
25. Qxa6 {[%clk 0:01:43.1]} 25... Ra8 {[%clk 0:01:42.4]} 26. Qa5 {[%clk
0:01:29.1]} 26... Rxa5 {[%clk 0:01:39.9]} 27. Bxa5 {[%clk 0:01:30.5]} 27... h5
{[%clk 0:01:38.6]} 28. f3 {[%clk 0:01:06.4]} 28... h4 {[%clk 0:01:36.9]} 29. Nf1
{[%clk 0:01:04.4]} 29... Nh5 {[%clk 0:01:36.3]} 30. Rd1 {[%clk 0:00:58]} 30...
Nf4 {[%clk 0:01:26.2]} 31. Ne3 {[%clk 0:00:57.6]} 31... Qc5 {[%clk 0:01:20.9]}
32. Kf2 {[%clk 0:00:58.8]} 32... Nxg2 {[%clk 0:01:17.1]} 33. Kxg2 {[%clk
0:00:59.3]} 33... Qxe3 {[%clk 0:01:17.3]} 34. Rf1 {[%clk 0:00:59.8]} 34... c6
{[%clk 0:01:12.5]} 35. Bc7 {[%clk 0:00:59]} 35... Qd2+ {[%clk 0:01:11.7]} 36.
Rf2 {[%clk 0:00:59.5]} 36... Qf4 {[%clk 0:01:12.6]} 37. Kf1 {[%clk 0:00:55.9]}
37... f6 {[%clk 0:01:13.1]} 38. Ke2 {[%clk 0:00:55.9]} 38... Qg3 {[%clk
0:01:10.1]} 39. Bd8 {[%clk 0:00:54.9]} 39... Kf7 {[%clk 0:01:09.5]} 40. Bc7
{[%clk 0:00:55.6]} 40... Qxh3 {[%clk 0:01:09.2]} 41. f4 {[%clk 0:00:56.5]} 41...
Ke6 {[%clk 0:01:07.8]} 42. fxe5 {[%clk 0:00:53.3]} 42... fxe5 {[%clk 0:01:08.4]}
0-1

[Event "*** Titled Tuesday 3|2 Blitz"]
[Site "Chess.com"]
[Date "2015.02.24"]
[Round "3"]
[White "Hikaru"]
[Black "chito89"]
[Result "1/2-1/2"]
[WhiteElo "2847"]
[BlackElo "2593"]
[TimeControl "180+2"]
[EndTime "11:34:37 PST"]
[Termination "Game drawn by stalemate"]

1. d3 {[%clk 0:02:50.7]} 1... d5 {[%clk 0:02:57.1]} 2. Nd2 {[%clk 0:02:52.6]}
2... e5 {[%clk 0:02:52.6]} 3. c4 {[%clk 0:02:53.3]} 3... d4 {[%clk 0:02:49]} 4.
Ngf3 {[%clk 0:02:52.7]} 4... Nc6 {[%clk 0:02:45.8]} 5. g3 {[%clk 0:02:53.5]}
5... a5 {[%clk 0:02:43.9]} 6. Bg2 {[%clk 0:02:54.5]} 6... g6 {[%clk 0:02:44.2]}
7. O-O {[%clk 0:02:55.2]} 7... Bg7 {[%clk 0:02:45.5]} 8. a3 {[%clk 0:02:54.1]}
8... Nge7 {[%clk 0:02:45.8]} 9. Rb1 {[%clk 0:02:54.9]} 9... a4 {[%clk
0:02:37.8]} 10. Ne4 {[%clk 0:02:56.1]} 10... b6 {[%clk 0:02:31.4]} 11. Bg5
{[%clk 0:02:56.7]} 11... h6 {[%clk 0:02:25.5]} 12. Bf6 {[%clk 0:02:51.7]} 12...
O-O {[%clk 0:02:26.3]} 13. e3 {[%clk 0:02:49.3]} 13... Bxf6 {[%clk 0:02:19.4]}
14. Nxf6+ {[%clk 0:02:49.9]} 14... Kg7 {[%clk 0:02:20.9]} 15. Nd5 {[%clk
0:02:45.5]} 15... Ra5 {[%clk 0:02:13.8]} 16. Nxe7 {[%clk 0:02:37.7]} 16... Qxe7
{[%clk 0:02:07.2]} 17. exd4 {[%clk 0:02:39.6]} 17... Nxd4 {[%clk 0:02:04.7]} 18.
Nxd4 {[%clk 0:02:40.4]} 18... exd4 {[%clk 0:02:06.2]} 19. Re1 {[%clk 0:02:42.3]}
19... Qf6 {[%clk 0:01:58.2]} 20. Qd2 {[%clk 0:02:43.3]} 20... Bf5 {[%clk
0:01:57.6]} 21. h3 {[%clk 0:02:39]} 21... h5 {[%clk 0:01:58.6]} 22. f4 {[%clk
0:02:36.9]} 22... Qd6 {[%clk 0:01:41]} 23. Re2 {[%clk 0:02:35.2]} 23... Rc5
{[%clk 0:01:34.8]} 24. b4 {[%clk 0:02:18.3]} 24... axb3 {[%clk 0:01:33.5]} 25.
Rxb3 {[%clk 0:02:19.6]} 25... Ra5 {[%clk 0:01:24.9]} 26. Qb4 {[%clk 0:02:19.2]}
26... Qxb4 {[%clk 0:01:24.8]} 27. axb4 {[%clk 0:02:21.1]} 27... Ra1+ {[%clk
0:01:22.9]} 28. Kf2 {[%clk 0:02:18]} 28... Rd1 {[%clk 0:01:24]} 29. Re7 {[%clk
0:02:19.3]} 29... Rd2+ {[%clk 0:01:07.3]} 30. Kg1 {[%clk 0:02:14.7]} 30... Bxd3
{[%clk 0:01:02.6]} 31. c5 {[%clk 0:02:12.1]} 31... Bc4 {[%clk 0:00:58.9]} 32.
Rb1 {[%clk 0:02:13.1]} 32... bxc5 {[%clk 0:00:50.8]} 33. bxc5 {[%clk 0:02:04.7]}
33... d3 {[%clk 0:00:44.2]} 34. Rxc7 {[%clk 0:02:00.7]} 34... Rd8 {[%clk
0:00:43.5]} 35. c6 {[%clk 0:02:00.7]} 35... Be6 {[%clk 0:00:41.3]} 36. Ra7
{[%clk 0:01:54.5]} 36... Rc2 {[%clk 0:00:41.3]} 37. Rd1 {[%clk 0:01:55.8]} 37...
d2 {[%clk 0:00:39.5]} 38. Kf2 {[%clk 0:01:37.1]} 38... Rc1 {[%clk 0:00:19.9]}
39. Bf3 {[%clk 0:01:37.5]} 39... Bb3 {[%clk 0:00:19.6]} 40. c7 {[%clk
0:01:34.3]} 40... Rc8 {[%clk 0:00:17]} 41. Rxd2 {[%clk 0:01:35.7]} 41... R1xc7
{[%clk 0:00:18.2]} 42. Rxc7 {[%clk 0:01:37.3]} 42... Rxc7 {[%clk 0:00:19.5]} 43.
f5 {[%clk 0:01:39.2]} 43... Rc2 {[%clk 0:00:20.4]} 44. Rxc2 {[%clk 0:01:40.3]}
44... Bxc2 {[%clk 0:00:21.9]} 45. fxg6 {[%clk 0:01:42.2]} 45... fxg6 {[%clk
0:00:22.3]} 46. Ke3 {[%clk 0:01:43.6]} 46... Kf6 {[%clk 0:00:22]} 47. Be4 {[%clk
0:01:44.5]} 47... Bb3 {[%clk 0:00:21.7]} 48. h4 {[%clk 0:01:45.8]} 48... Be6
{[%clk 0:00:22.6]} 49. Kd4 {[%clk 0:01:47]} 49... g5 {[%clk 0:00:23.5]} 50. Bf3
{[%clk 0:01:47.4]} 50... gxh4 {[%clk 0:00:24.5]} 51. gxh4 {[%clk 0:01:49.3]}
51... Bg4 {[%clk 0:00:25.7]} 52. Be4 {[%clk 0:01:49.8]} 52... Bf5 {[%clk
0:00:25.9]} 53. Bd5 {[%clk 0:01:50.2]} 53... Bg4 {[%clk 0:00:27]} 54. Bc6 {[%clk
0:01:51]} 54... Kg6 {[%clk 0:00:28.2]} 55. Ke5 {[%clk 0:01:51.2]} 55... Kh6
{[%clk 0:00:29.7]} 56. Be8 {[%clk 0:01:52.4]} 56... Bd1 {[%clk 0:00:30.6]} 57.
Kf6 {[%clk 0:01:53.6]} 57... Bg4 {[%clk 0:00:32]} 58. Ba4 {[%clk 0:01:54.3]}
58... Be2 {[%clk 0:00:33.1]} 59. Bc2 {[%clk 0:01:55.4]} 59... Bg4 {[%clk
0:00:33.9]} 60. Bf5 {[%clk 0:01:56.8]} 60... Bxf5 {[%clk 0:00:34]} 61. Kxf5
{[%clk 0:01:58.5]} 61... Kg7 {[%clk 0:00:35.4]} 62. Kg5 {[%clk 0:02:00.4]} 62...
Kh7 {[%clk 0:00:36.8]} 63. Kxh5 {[%clk 0:02:02.3]} 63... Kg7 {[%clk 0:00:38.3]}
64. Kg5 {[%clk 0:02:04.2]} 64... Kh7 {[%clk 0:00:39.8]} 65. h5 {[%clk
0:02:06.1]} 65... Kg7 {[%clk 0:00:41.3]} 66. h6+ {[%clk 0:02:08]} 66... Kh7
{[%clk 0:00:42.8]} 67. Kh5 {[%clk 0:02:09.9]} 67... Kh8 {[%clk 0:00:44.2]} 68.
Kg6 {[%clk 0:02:11.8]} 68... Kg8 {[%clk 0:00:45.7]} 69. h7+ {[%clk 0:02:13.7]}
69... Kh8 {[%clk 0:00:47.2]} 70. Kh6 {[%clk 0:02:15.6]} 1/2-1/2

[Event "*** Titled Tuesday 3|2 Blitz"]
[Site "Chess.com"]
[Date "2015.02.24"]
[Round "3"]
[White "iFrancisco"]
[Black "BjarkeSahl"]
[Result "1/2-1/2"]
[WhiteElo "2281"]
[BlackElo "2126"]
[TimeControl "180+2"]
[EndTime "11:34:54 PST"]
[Termination "Game drawn by repetition"]

1. e4 {[%clk 0:03:00]} 1... c6 {[%clk 0:02:58.4]} 2. d4 {[%clk 0:03:00.6]} 2...
d5 {[%clk 0:02:59.8]} 3. e5 {[%clk 0:03:02.2]} 3... Bf5 {[%clk 0:03:00.3]} 4.
Nf3 {[%clk 0:03:03.4]} 4... e6 {[%clk 0:03:00.4]} 5. Be2 {[%clk 0:03:04.9]} 5...
Nd7 {[%clk 0:03:00.1]} 6. O-O {[%clk 0:03:05.9]} 6... f6 {[%clk 0:03:01.2]} 7.
c4 {[%clk 0:02:52.3]} 7... fxe5 {[%clk 0:02:59.8]} 8. cxd5 {[%clk 0:02:53.4]}
8... cxd5 {[%clk 0:02:56.9]} 9. dxe5 {[%clk 0:02:54.5]} 9... Bc5 {[%clk
0:02:54.4]} 10. Nd4 {[%clk 0:02:49.1]} 10... Bxd4 {[%clk 0:02:41.9]} 11. Qxd4
{[%clk 0:02:49.6]} 11... Ne7 {[%clk 0:02:43.4]} 12. f4 {[%clk 0:02:43.5]} 12...
O-O {[%clk 0:02:30.9]} 13. Be3 {[%clk 0:02:41]} 13... Nc6 {[%clk 0:02:20.3]} 14.
Qd2 {[%clk 0:02:40.6]} 14... Qe7 {[%clk 0:01:57.4]} 15. Nc3 {[%clk 0:02:39.9]}
15... Rad8 {[%clk 0:01:58.1]} 16. Nb5 {[%clk 0:02:40.8]} 16... Nc5 {[%clk
0:01:55.8]} 17. Rfd1 {[%clk 0:02:24.6]} 17... Ne4 {[%clk 0:01:47.1]} 18. Qe1
{[%clk 0:02:25.4]} 18... a6 {[%clk 0:01:48.5]} 19. Nd4 {[%clk 0:02:23.9]} 19...
Nxd4 {[%clk 0:01:47.2]} 20. Bxd4 {[%clk 0:02:25.8]} 20... g5 {[%clk 0:01:27.9]}
21. fxg5 {[%clk 0:01:53.3]} 21... Qxg5 {[%clk 0:01:27.8]} 22. Kh1 {[%clk
0:01:44.4]} 22... Rd7 {[%clk 0:01:25.1]} 23. Rac1 {[%clk 0:01:44]} 23... Rg7
{[%clk 0:01:20.2]} 24. Bf3 {[%clk 0:01:45]} 24... Bg4 {[%clk 0:01:15.5]} 25.
Bxg4 {[%clk 0:01:31.5]} 25... Qxg4 {[%clk 0:01:14.8]} 26. Rc2 {[%clk 0:01:31.3]}
26... Rgf7 {[%clk 0:01:06]} 27. Bg1 {[%clk 0:01:26.3]} 27... Nf2+ {[%clk
0:00:46]} 28. Bxf2 {[%clk 0:01:00.1]} 28... Rxf2 {[%clk 0:00:47.5]} 29. Rxf2
{[%clk 0:00:44.8]} 29... Rxf2 {[%clk 0:00:48]} 30. Qxf2 {[%clk 0:00:36.6]} 30...
Qxd1+ {[%clk 0:00:48.2]} 31. Qg1 {[%clk 0:00:38.5]} 31... Qe2 {[%clk 0:00:46.8]}
32. h3 {[%clk 0:00:31.4]} 32... Qxe5 {[%clk 0:00:47.4]} 33. Qb6 {[%clk
0:00:31.8]} 33... d4 {[%clk 0:00:46.8]} 34. Qxb7 {[%clk 0:00:29.1]} 34... Qe3
{[%clk 0:00:37.6]} 35. Qc8+ {[%clk 0:00:28.4]} 35... Kf7 {[%clk 0:00:37.7]} 36.
Qd7+ {[%clk 0:00:29.9]} 36... Kf6 {[%clk 0:00:37.8]} 37. Qd8+ {[%clk 0:00:31.3]}
37... Ke5 {[%clk 0:00:37]} 38. Qc7+ {[%clk 0:00:32.7]} 38... Ke4 {[%clk
0:00:37.8]} 39. Qxh7+ {[%clk 0:00:33.7]} 39... Kd5 {[%clk 0:00:37.3]} 40. Qd7+
{[%clk 0:00:34.7]} 40... Ke5 {[%clk 0:00:37.7]} 41. Qc7+ {[%clk 0:00:35.7]}
41... Kf6 {[%clk 0:00:37.2]} 42. Qd8+ {[%clk 0:00:34.3]} 42... Ke5 {[%clk
0:00:38.5]} 43. Qc7+ {[%clk 0:00:34.2]} 43... Kf6 {[%clk 0:00:39.9]} 44. Qd8+
{[%clk 0:00:27.3]} 44... Ke5 {[%clk 0:00:40.6]} 45. Qc7+ {[%clk 0:00:22.3]}
1/2-1/2

[Event "*** Titled Tuesday 3|2 Blitz"]
[Site "Chess.com"]
[Date "2015.02.24"]
[Round "3"]
[White "LyonBeast"]
[Black "Inopov"]
[Result "1-0"]
[WhiteElo "2762"]
[BlackElo "2470"]
[TimeControl "180+2"]
[EndTime "11:35:03 PST"]
[Termination "LyonBeast won by resignation"]

1. e4 {[%clk 0:03:00]} 1... e6 {[%clk 0:02:57.5]} 2. d4 {[%clk 0:02:57.7]} 2...
d5 {[%clk 0:02:59]} 3. Nd2 {[%clk 0:02:57]} 3... Be7 {[%clk 0:03:00.2]} 4. Bd3
{[%clk 0:02:54.9]} 4... c5 {[%clk 0:02:56.5]} 5. dxc5 {[%clk 0:02:53.8]} 5...
Nf6 {[%clk 0:02:57.6]} 6. Qe2 {[%clk 0:02:51.1]} 6... O-O {[%clk 0:02:58.4]} 7.
Ngf3 {[%clk 0:02:51.7]} 7... a5 {[%clk 0:02:58.4]} 8. O-O {[%clk 0:02:51.2]}
8... Na6 {[%clk 0:02:58.7]} 9. e5 {[%clk 0:02:52.5]} 9... Nd7 {[%clk 0:02:59.3]}
10. c4 {[%clk 0:02:53.6]} 10... Ndxc5 {[%clk 0:03:00.3]} 11. Bb1 {[%clk
0:02:54.6]} 11... b6 {[%clk 0:03:01.5]} 12. Rd1 {[%clk 0:02:47.8]} 12... Nc7
{[%clk 0:03:00.8]} 13. Nd4 {[%clk 0:02:40.7]} 13... Bb7 {[%clk 0:02:55.1]} 14.
Nf1 {[%clk 0:02:42.1]} 14... Qd7 {[%clk 0:02:37.3]} 15. Ng3 {[%clk 0:02:38]}
15... Ba6 {[%clk 0:02:32.5]} 16. Qg4 {[%clk 0:02:25.5]} 16... f5 {[%clk
0:02:07.2]} 17. exf6 {[%clk 0:02:24.2]} 17... Bxf6 {[%clk 0:02:07.1]} 18. Nh5
{[%clk 0:02:10.9]} 18... Bxd4 {[%clk 0:01:32.8]} 19. Qxd4 {[%clk 0:02:04.3]}
19... Bxc4 {[%clk 0:01:33.4]} 20. Re1 {[%clk 0:01:33.6]} 20... Nb5 {[%clk
0:01:22.7]} 21. Qd1 {[%clk 0:01:32.5]} 21... d4 {[%clk 0:01:11.7]} 22. Ng3
{[%clk 0:01:25.6]} 22... d3 {[%clk 0:01:07.3]} 23. Be3 {[%clk 0:01:22.7]} 23...
Nd4 {[%clk 0:01:03.8]} 24. b3 {[%clk 0:01:22.3]} 24... Ba6 {[%clk 0:01:00.7]}
25. Qg4 {[%clk 0:01:21.8]} 25... Rad8 {[%clk 0:01:00.5]} 26. Rd1 {[%clk
0:01:20.2]} 26... e5 {[%clk 0:01:01.1]} 27. Qxd7 {[%clk 0:01:18.7]} 27... Rxd7
{[%clk 0:01:02.1]} 28. f3 {[%clk 0:01:19.8]} 28... g6 {[%clk 0:00:51.3]} 29. Kf2
{[%clk 0:01:10.3]} 29... h5 {[%clk 0:00:34.8]} 30. h4 {[%clk 0:01:08.7]} 30...
Nf5 {[%clk 0:00:28.3]} 31. Bxc5 {[%clk 0:01:07]} 31... bxc5 {[%clk 0:00:26.1]}
32. Ne4 {[%clk 0:01:08.1]} 32... Rd5 {[%clk 0:00:25.3]} 33. a3 {[%clk
0:01:05.5]} 33... Nxh4 {[%clk 0:00:22.6]} 34. Ba2 {[%clk 0:01:01.3]} 34... Kg7
{[%clk 0:00:22.7]} 35. Rac1 {[%clk 0:01:02.4]} 35... c4 {[%clk 0:00:16.7]} 36.
bxc4 {[%clk 0:01:02.5]} 36... Rd4 {[%clk 0:00:18.3]} 37. Nc5 {[%clk 0:00:58.5]}
37... Bc8 {[%clk 0:00:19.7]} 38. Rxd3 {[%clk 0:00:57.7]} 38... Rxd3 {[%clk
0:00:19]} 39. Nxd3 {[%clk 0:00:59.6]} 39... e4 {[%clk 0:00:20.6]} 40. Ne5 {[%clk
0:00:58.9]} 40... Rf5 {[%clk 0:00:20.3]} 41. Nc6 {[%clk 0:00:57.5]} 41... exf3
{[%clk 0:00:20.5]} 42. g3 {[%clk 0:00:58.2]} 42... Ng2 {[%clk 0:00:19.2]} 43.
Ne7 {[%clk 0:00:58.8]} 43... Re5 {[%clk 0:00:20.1]} 44. Nxc8 {[%clk 0:00:59.8]}
44... Re2+ {[%clk 0:00:21.3]} 45. Kxf3 {[%clk 0:01:01.3]} 45... Rxa2 {[%clk
0:00:22.9]} 46. c5 {[%clk 0:01:00.3]} 46... g5 {[%clk 0:00:23.2]} 47. c6 {[%clk
0:00:59.8]} 47... h4 {[%clk 0:00:24.2]} 48. c7 {[%clk 0:00:58.3]} 48... h3
{[%clk 0:00:24.9]} 49. Nd6 {[%clk 0:00:59.1]} 49... Rxa3+ {[%clk 0:00:25.6]} 50.
Kg4 {[%clk 0:00:57.2]} 50... Ne3+ {[%clk 0:00:27.3]} 51. Kxg5 {[%clk 0:00:58.2]}
1-0